bitfinex/quotes_SOLUSD_20260302
["timestamp","ask_amount","ask_price","bid_price","bid_amount"]
[1772476139137,11.42883265,87.498,87.469,11.43262184]
[1772476139344,10.74633001,87.51,87.47,4.09699499]
[1772476139641,11.42700429,87.512,87.47,4.09699499]
[1772476140655,3.69383402,87.547,87.469,40.01417644]
[1772476140656,10.74633001,87.53,87.472,4.09699499]
[1772476140833,1.09416522,87.545,87.484,4.09699499]
[1772476141139,10.74633001,87.6,87.469,222.93612592]
[1772476141140,1.09416522,87.581,87.513,0.28432314]
[1772476141345,11.41813199,87.58,87.524,4.09699499]
[1772476142126,11.41761632,87.584,87.524,4.09699499]
[1772476143256,11.41761632,87.584,87.529,4.09699499]
[1772476143427,11.41761632,87.584,87.535,4.09699499]
[1772476144040,11.4170962,87.588,87.535,4.09699499]
[1772476144354,1.09416522,87.579,87.535,4.09699499]
[1772476145342,11.41839274,87.578,87.537,4.09699499]
[1772476146151,10.74633001,87.57,87.537,4.09699499]
[1772476147228,10.74633001,87.57,87.539,4.09699499]
[1772476147555,11.41956628,87.569,87.539,4.09699499]
[1772476147937,39.96848199,87.569,87.51,1.14272654]
[1772476148140,10.74633001,87.56,87.507,4.09699499]
[1772476148633,11.41956628,87.569,87.509,4.09699499]
[1772476148833,39.96848199,87.569,87.51,0.14216157]
[1772476149046,1.09416522,87.568,87.515,4.09699499]
[1772476149240,1.09416522,87.568,87.517,4.09699499]
[1772476149448,11.4198271,87.567,87.517,4.09699499]
[1772476150157,12.51399232,87.567,87.517,4.09699499]
[1772476150350,1.09416522,87.559,87.517,4.09699499]
[1772476151257,11.42478492,87.529,87.49,4.09699499]
[1772476151456,11.42478492,87.529,87.492,4.09699499]
[1772476154869,11.42478492,87.529,87.474,4.09699499]
[1772476154870,1.09416522,87.519,87.474,4.09699499]
[1772476155437,1.09416522,87.527,87.474,4.09699499]
[1772476155655,10.74633001,87.52,87.474,4.09699499]
[1772476156240,1.09416522,87.509,87.474,4.09699499]
[1772476156747,11.42609033,87.519,87.476,4.31903561]
[1772476157049,11.42374081,87.537,87.479,4.60335875]
[1772476157254,11.42317984,87.542,87.484,4.31903561]
[1772476157440,10.74633001,87.54,87.484,4.31903561]
[1772476158365,10.74633001,87.54,87.48,1.14311842]
[1772476158366,10.74633001,87.54,87.49,4.42844611]
[1772476158546,11.42317984,87.542,87.494,4.42844611]
[1772476158951,10.74633001,87.54,87.496,4.42844611]
[1772476160649,11.42243594,87.547,87.499,4.42844611]
[1772476161770,1.09416522,87.539,87.5,11.42857142]
[1772476162274,10.74633001,87.53,87.501,4.42844611]
[1772476162441,1.09416522,87.539,87.501,4.42844611]
[1772476162765,10.74633001,87.53,87.501,4.42844611]
[1772476162941,1.09416522,87.539,87.501,4.42844611]
[1772476163541,1.09416522,87.519,87.479,3.69383402]
[1772476163868,1.09416522,87.499,87.461,43.66693545]
[1772476164052,11.84049523,87.49,87.458,4.42844611]
[1772476164363,10.74633001,87.48,87.458,4.42844611]
[1772476164562,1.09416522,87.49,87.458,15.86249511]
[1772476164763,11.84049523,87.49,87.458,15.86249511]
[1772476164950,11.84049523,87.49,87.458,11.434049]
[1772476165150,11.84049523,87.49,87.459,4.42844611]
[1772476165562,10.74633001,87.48,87.459,4.42844611]
[1772476165864,1.09416522,87.49,87.459,4.42844611]
[1772476165865,11.43000834,87.489,87.459,4.42844611]
[1772476166070,11.43000834,87.489,87.459,15.86235191]
[1772476166563,11.42923109,87.495,87.46,4.42844611]
[1772476166870,10.74633001,87.5,87.46,4.42844611]
[1772476167744,10.74633001,87.49,87.46,4.42844611]
[1772476168151,11.42875496,87.499,87.462,4.42844611]
[1772476168558,10.74633001,87.49,87.462,4.42844611]
[1772476169870,11.43000834,87.489,87.464,4.42844611]
[1772476171969,10.74633001,87.48,87.459,11.43386555]
[1772476172167,11.43000834,87.489,87.44,0.2]
[1772476172168,1.09416522,87.469,87.44,0.2]
[1772476172369,10.74633001,87.46,87.44,0.2]
[1772476172549,10.74633001,87.45,87.44,0.2]
[1772476173371,10.74633001,87.46,87.44,0.2]
[1772476173568,10.74633001,87.45,87.44,1e-08]
[1772476173746,1.09416522,87.459,87.44,1e-08]
[1772476174074,10.74633001,87.46,87.44,1e-08]
[1772476174373,11.43392904,87.459,87.44,1e-08]
[1772476176275,0.28432314,87.458,87.44,1e-08]
[1772476176668,10.7657479,87.45,87.44,1e-08]
[1772476177248,0.28432314,87.458,87.44,1e-08]
[1772476178377,11.43392904,87.459,87.44,1e-08]
[1772476178378,11.43419051,87.457,87.44,1e-08]
[1772476179764,11.43419051,87.457,87.441,4.42844611]
[1772476180159,1.09416522,87.456,87.44,1e-08]
[1772476180373,1.09416522,87.449,87.44,1e-08]
[1772476180570,11.4353673,87.448,87.44,1e-08]
[1772476183575,11.4353673,87.448,87.404,28.60278792]
[1772476183576,1.09416522,87.446,87.411,4.42844611]
[1772476183778,0.28432314,87.447,87.395,4.42844611]
[1772476183779,10.7657479,87.42,87.395,4.42844611]
[1772476183969,1.09416522,87.419,87.379,4.42844611]
[1772476184169,10.7657479,87.41,87.379,4.42844611]
[1772476184778,10.7657479,87.41,87.381,4.42844611]
[1772476184966,10.7657479,87.42,87.381,4.42844611]
[1772476185155,10.7657479,87.42,87.383,4.42844611]
[1772476186082,10.7657479,87.41,87.383,4.42844611]
[1772476186880,11.44046951,87.409,87.384,11.44374256]
[1772476187181,11.44046951,87.409,87.349,3.69383402]
[1772476187182,10.7657479,87.4,87.371,4.42844611]
[1772476187480,1.09416522,87.402,87.371,4.42844611]
[1772476187481,10.7657479,87.39,87.371,4.42844611]
[1772476188182,10.7657479,87.39,87.363,15.53881028]
[1772476188385,10.7657479,87.39,87.363,4.09239197]
[1772476189180,11.4430878,87.389,87.363,4.09239197]
[1772476190079,11.4430878,87.389,87.324,45.8060138]
[1772476190080,10.7657479,87.38,87.362,4.09239197]
[1772476190383,1.09416522,87.388,87.362,4.09239197]
[1772476190581,11.4430878,87.389,87.362,4.09239197]
[1772476190767,11.4430878,87.389,87.362,15.53896807]
[1772476191172,40.32658949,87.408,87.371,4.09239197]
[1772476191366,10.7657479,87.4,87.371,4.09239197]
[1772476192066,11.43916082,87.419,87.371,4.09239197]
[1772476193268,11.43916082,87.419,87.373,4.09239197]
[1772476195293,11.43916082,87.419,87.375,4.09239197]
[1772476195793,10.7657479,87.42,87.375,4.09239197]
[1772476195991,11.43667512,87.438,87.378,4.37671511]
[1772476196597,11.43667512,87.438,87.382,4.37671511]
[1772476197797,1.09416522,87.437,87.384,4.37671511]
[1772476199379,10.7657479,87.44,87.384,4.37671511]
[1772476199878,11.43654433,87.439,87.386,4.09239197]
[1772476200402,45.73012673,87.47,87.385,40.0526406]
[1772476200403,11.43092293,87.482,87.389,4.09239197]
[1772476200570,10.7657479,87.47,87.397,4.09239197]
[1772476200770,10.7657479,87.45,87.405,4.09239197]
[1772476201001,10.7657479,87.44,87.405,4.09239197]
[1772476201294,10.7657479,87.46,87.405,4.09239197]
[1772476201494,10.7657479,87.45,87.405,4.09239197]
[1772476201694,10.7657479,87.44,87.405,4.09239197]
[1772476201997,11.43654433,87.439,87.407,4.09239197]
[1772476203693,10.7657479,87.43,87.407,4.09239197]
[1772476203897,12.53097114,87.437,87.407,4.09239197]
[1772476204100,1.09416522,87.436,87.407,4.09239197]
[1772476204794,1.09416522,87.436,87.408,15.53299237]
[1772476204994,1.09416522,87.436,87.409,4.09239197]
[1772476205782,10.7657479,87.44,87.409,4.09239197]
[1772476205981,22.1995462,87.46,87.411,4.09239197]
[1772476206190,1.09416522,87.459,87.411,4.09239197]
[1772476207289,1.09416522,87.439,87.411,4.09239197]
[1772476207903,12.53084034,87.438,87.411,4.09239197]
[1772476208108,1.09416522,87.419,87.385,4.09239197]
[1772476208291,1.09416522,87.409,87.375,4.09239197]
[1772476208488,10.7657479,87.39,87.37,0.2]
[1772476208986,1.09416522,87.389,87.37,0.2]
[1772476209689,1.09416522,87.379,87.37,0.2]
[1772476210503,1.09416522,87.377,87.325,4.09239197]
[1772476210699,1.09416522,87.359,87.32,18.79607621]
[1772476210887,1.09416522,87.353,87.321,4.09239197]
[1772476211089,1.09416522,87.362,87.321,4.09239197]
[1772476211294,1.09416522,87.376,87.321,4.09239197]
[1772476211607,1.09416522,87.377,87.322,0.28432314]
[1772476211811,1.09416522,87.377,87.32,47.42640145]
[1772476211812,1.09416522,87.359,87.325,4.09239197]
[1772476212391,12.54131373,87.358,87.326,11.45134324]
[1772476212597,12.54131373,87.358,87.327,4.09239197]
[1772476212805,1.09416522,87.357,87.327,4.09239197]
[1772476213014,11.44660344,87.363,87.327,4.09239197]
[1772476213315,45.75156171,87.429,87.327,4.09239197]
[1772476213316,12.53909352,87.375,87.327,4.09239197]
[1772476214509,11.4430878,87.389,87.332,4.37671511]
[1772476214713,1.09416522,87.379,87.332,4.09239197]
[1772476216006,1.09416522,87.388,87.334,4.41246302]
[1772476216212,1.09416522,87.379,87.334,4.41246302]
[1772476216418,11.85991312,87.37,87.335,11.45016316]
[1772476216597,1.09416522,87.369,87.336,4.41246302]
[1772476216799,1.09416522,87.387,87.336,4.41246302]
[1772476217022,1.09416522,87.386,87.336,4.41246302]
[1772476218017,1.09416522,87.379,87.336,4.41246302]
[1772476218321,11.44338551,87.387,87.336,4.41246302]
[1772476218500,12.53755073,87.387,87.338,4.05196397]
[1772476219111,1.09416522,87.386,87.338,4.05196397]
[1772476219311,10.7657479,87.39,87.339,0.28432314]
[1772476219515,1.09416522,87.395,87.344,4.05196397]
[1772476219706,1.09416522,87.393,87.344,4.05196397]
[1772476219907,1.09416522,87.389,87.344,4.05196397]
[1772476220519,1.09416522,87.387,87.346,4.05196397]
[1772476220818,57.20102102,87.412,87.345,11.44885225]
[1772476220819,11.43863742,87.423,87.351,4.33628711]
[1772476221014,11.43863742,87.423,87.356,4.33628711]
[1772476221220,12.53280264,87.423,87.365,4.05196397]
[1772476221400,12.53280264,87.423,87.351,61.6]
[1772476221401,1.09416522,87.422,87.37,4.05196397]
[1772476221613,11.43863742,87.423,87.37,4.05196397]
[1772476221614,1.09416522,87.417,87.37,4.05196397]
[1772476222315,1.09416522,87.409,87.37,4.05196397]
[1772476222819,1.09416522,87.407,87.371,15.49740925]
[1772476223017,11.43798325,87.428,87.372,4.05196397]
[1772476223217,1.09416522,87.427,87.378,4.05196397]
[1772476224313,40.03294138,87.428,87.378,4.05196397]
[1772476224512,1.09416522,87.427,87.378,4.05196397]
[1772476225116,1.09416522,87.425,87.38,4.05196397]
[1772476225502,11.43824491,87.426,87.38,4.05196397]
[1772476228207,4.02541922,87.41,87.367,4.05196397]
[1772476228417,1.09416522,87.409,87.367,4.05196397]
[1772476228613,1.09416522,87.409,87.366,11.44610031]
[1772476228614,4.02541922,87.43,87.373,4.05196397]
[1772476228922,1.09416522,87.429,87.375,4.05196397]
[1772476230728,1.09416522,87.427,87.377,4.05196397]
[1772476232614,1.09416522,87.425,87.379,4.05196397]
[1772476233127,11.43824491,87.426,87.379,4.05196397]
[1772476233517,1.09416522,87.425,87.379,4.05196397]
[1772476233826,1.09416522,87.409,87.379,4.05196397]
[1772476234524,4.02541922,87.44,87.37,4.05196397]
[1772476234525,1.09416522,87.407,87.37,4.05196397]
[1772476234727,4.02541922,87.39,87.339,4.05196397]
[1772476234918,4.02541922,87.38,87.339,4.05196397]
[1772476235313,1.09416522,87.38,87.339,4.05196397]
[1772476235513,5.11958444,87.38,87.339,4.05196397]
[1772476235714,11.44439739,87.379,87.34,4.05196397]
[1772476235927,28.60721239,87.391,87.339,40.07373566]
[1772476235928,4.02541922,87.4,87.344,4.05196397]
[1772476236637,1.09416522,87.401,87.344,4.05196397]
[1772476237113,4.02541922,87.4,87.344,4.05196397]
[1772476237309,5.11958444,87.4,87.344,4.05196397]
[1772476237832,5.11958444,87.4,87.349,4.05196397]
[1772476237833,11.44190942,87.398,87.349,4.05196397]
[1772476238035,45.72880376,87.473,87.354,4.33628711]
[1772476238328,1.09416522,87.452,87.374,4.05196397]
[1772476238528,1.09416522,87.452,87.384,4.05196397]
[1772476238834,1.09416522,87.447,87.389,4.05196397]
[1772476239339,4.01910103,87.46,87.395,4.05196397]
[1772476239547,11.43353685,87.462,87.404,4.05196397]
[1772476239834,11.43353685,87.462,87.409,4.05196397]
[1772476240034,4.01910103,87.44,87.405,11.44099307]
[1772476240241,1.09416522,87.439,87.405,11.44099307]
[1772476240621,1.09416522,87.439,87.405,15.49295704]
[1772476242020,11.43667512,87.438,87.406,4.05196397]
[1772476242223,1.09416522,87.429,87.385,4.05196397]
[1772476242958,1.09416522,87.429,87.352,45.79132952]
[1772476242959,1.09416522,87.399,87.358,4.05196397]
[1772476243128,10.7689261,87.39,87.358,4.05196397]
[1772476243540,1.09416522,87.389,87.352,11.44783148]
[1772476244048,40.05126561,87.388,87.345,11.44885225]
[1772476244250,1.09416522,87.387,87.346,4.05196397]
[1772476244629,40.05126561,87.388,87.326,4.05196397]
[1772476244630,1.09416522,87.369,87.326,4.05196397]
[1772476244929,1.09416522,87.367,87.328,4.05196397]
[1772476245349,11.86309132,87.36,87.318,4.05196397]
[1772476245556,10.7689261,87.35,87.318,4.05196397]
[1772476246127,1.09416522,87.36,87.318,4.05196397]
[1772476246327,10.7689261,87.39,87.324,4.49447391]
[1772476246554,28.60215545,87.406,87.318,40.08329404]
[1772476246555,28.60215545,87.406,87.329,4.77879705]
[1772476246756,10.7689261,87.39,87.335,4.49447391]
[1772476248552,40.0508073,87.389,87.337,4.49447391]
[1772476248752,11.4430878,87.389,87.337,4.49447391]
[1772476249254,45.73801596,87.455,87.346,4.49447391]
[1772476249455,11.43301397,87.466,87.367,4.77879705]
[1772476249630,11.43301397,87.466,87.365,0.28432314]
[1772476249631,10.7689261,87.46,87.384,4.77879705]
[1772476249836,10.7689261,87.44,87.389,4.49447391]
[1772476250152,0.28432314,87.449,87.389,4.49447391]
[1772476250551,0.28432314,87.447,87.391,4.49447391]
[1772476251328,40.02378555,87.448,87.395,4.49447391]
[1772476252242,28.58505065,87.459,87.397,4.49447391]
[1772476252442,11.43405977,87.458,87.405,4.49447391]
[1772476253150,10.7689261,87.46,87.407,4.49447391]
[1772476253649,0.28432314,87.468,87.407,4.49447391]
[1772476253855,45.70284201,87.522,87.412,4.77879705]
[1772476253856,11.43118427,87.48,87.412,4.77879705]
[1772476254051,40.00914494,87.48,87.412,4.77879705]
[1772476254436,11.43118427,87.48,87.412,4.77879705]
[1772476254638,40.00914494,87.48,87.412,4.77879705]
[1772476255158,28.57796067,87.48,87.424,4.49447391]
[1772476256143,10.7689261,87.47,87.424,4.49447391]
[1772476257657,40.01417644,87.469,87.426,4.49447391]
[1772476259462,11.43262184,87.469,87.426,4.49447391]
[1772476259639,0.28432314,87.477,87.428,4.49447391]
[1772476260265,40.01005967,87.478,87.431,4.77879705]
[1772476260266,11.43144562,87.478,87.431,4.77879705]
[1772476261347,40.00045714,87.499,87.436,4.49447391]
[1772476261557,11.42870204,87.499,87.439,0.14216157]
[1772476261756,11.42870204,87.499,87.438,4.49447391]
[1772476261757,0.1,87.54,87.451,0.28432314]
[1772476262071,0.1,87.54,87.484,4.49447391]
[1772476262072,11.42392546,87.536,87.484,4.49447391]
[1772476262368,0.1,87.54,87.484,4.49447391]
[1772476262737,0.1,87.54,87.452,4.82477569]
[1772476262738,0.1,87.54,87.514,4.49447391]
[1772476262938,45.65848612,87.607,87.456,4.82477569]
[1772476262939,10.7689261,87.59,87.483,4.49447391]
[1772476263144,22.28971005,87.56,87.486,4.77879705]
[1772476263549,11.52078395,87.56,87.494,4.49447391]
[1772476263744,10.7689261,87.6,87.511,9.55357274]
[1772476263960,10.87886775,87.58,87.52,4.44447391]
[1772476264150,0.10994165,87.579,87.52,4.44447391]
[1772476264349,0.39426479,87.579,87.52,4.44447391]
[1772476264865,10.7689261,87.59,87.524,4.44447391]
[1772476265067,10.7689261,87.58,87.529,4.44447391]
[1772476265448,0.10994165,87.578,87.529,4.44447391]
[1772476265651,10.7689261,87.55,87.501,4.44447391]
[1772476266173,0.28432314,87.567,87.501,4.44447391]
[1772476266468,10.7689261,87.56,87.505,4.44447391]
[1772476267093,10.7689261,87.55,87.505,4.44447391]
[1772476267246,0.10994165,87.539,87.497,11.42896327]
[1772476267565,0.10994165,87.539,87.47,1.14324911]
[1772476267566,11.42100093,87.558,87.5,4.44447391]
[1772476267872,11.42100093,87.558,87.504,4.44447391]
[1772476268451,10.7689261,87.55,87.504,4.44447391]
[1772476268765,10.7689261,87.52,87.483,11.43075505]
[1772476269364,10.7689261,87.51,87.463,11.43340612]
[1772476269663,40.00045714,87.499,87.422,68.63260963]
[1772476269865,40.00045714,87.499,87.423,0.28432314]
[1772476270175,10.7689261,87.49,87.422,40.03568895]
[1772476270353,10.7689261,87.49,87.422,41.17956577]
[1772476270855,11.42870204,87.499,87.433,0.28432314]
[1772476271056,11.42739603,87.509,87.444,4.07191962]
[1772476271260,11.42739603,87.509,87.454,4.07191962]
[1772476271657,39.99588612,87.509,87.456,4.07191962]
[1772476272356,39.99588612,87.509,87.445,4.07191962]
[1772476272357,10.7689261,87.49,87.445,4.07191962]
[1772476272564,1.29216525,87.489,87.445,4.07191962]
[1772476273073,1.29216525,87.459,87.404,4.07191962]
[1772476273272,0.28432314,87.498,87.406,4.07191962]
[1772476273471,10.7689261,87.49,87.411,4.82477569]
[1772476273658,40.00502919,87.489,87.426,4.35624276]
[1772476273975,1.29216525,87.487,87.43,4.07191962]
[1772476274385,10.7689261,87.45,87.418,4.07191962]
[1772476274673,10.7689261,87.45,87.368,45.78320477]
[1772476274674,1.29216525,87.459,87.42,4.07191962]
[1772476275174,0.14216157,87.469,87.42,4.07191962]
[1772476275555,10.7689261,87.47,87.42,4.07191962]
[1772476275752,40.01417644,87.469,87.421,11.43889912]
[1772476275972,11.43262184,87.469,87.422,4.27448826]
[1772476276156,11.43118427,87.48,87.422,4.27448826]
[1772476277890,12.72125915,87.496,87.426,0.28432314]
[1772476278059,11.4290939,87.496,87.431,4.37029369]
[1772476278258,11.4290939,87.496,87.445,4.08597055]
[1772476278676,10.7689261,87.51,87.453,4.08597055]
[1772476278677,28.56825496,87.51,87.453,4.08597055]
[1772476278876,11.42648201,87.516,87.455,4.08597055]
[1772476279260,11.42648201,87.516,87.461,4.08597055]
[1772476279462,11.42648201,87.516,87.432,4.82477569]
[1772476279463,45.68533064,87.556,87.428,3.69383402]
[1772476279464,12.06109135,87.54,87.482,0.28432314]
[1772476279677,12.06109135,87.54,87.485,4.08597055]
[1772476279861,10.7689261,87.53,87.485,4.08597055]
[1772476280063,11.42478492,87.529,87.487,4.08597055]
[1772476280268,1.29216525,87.519,87.465,4.08597055]
[1772476280482,10.7689261,87.51,87.465,4.08597055]
[1772476280679,39.98674724,87.529,87.465,4.08597055]
[1772476280976,39.98674724,87.529,87.464,40.01646391]
[1772476280977,39.98674724,87.529,87.469,0.28432314]
[1772476281586,11.42478492,87.529,87.47,0.28432314]
[1772476281877,11.42478492,87.529,87.472,0.28432314]
[1772476282104,39.98217937,87.539,87.473,40.01234665]
[1772476282278,2.77716525,87.537,87.474,0.28432314]
[1772476282458,39.98217937,87.539,87.454,11.43458275]
[1772476282459,2.77716525,87.509,87.454,11.43458275]
[1772476282654,2.77716525,87.509,87.454,40.02103963]
[1772476282854,2.77716525,87.509,87.455,4.08597055]
[1772476283069,2.77716525,87.509,87.458,4.08597055]
[1772476284077,2.77716525,87.509,87.457,3.69383402]
[1772476284279,2.77716525,87.48,87.437,4.08597055]
[1772476284465,2.77716525,87.479,87.437,4.08597055]
[1772476286179,11.43144562,87.478,87.438,15.52264567]
[1772476286577,10.7689261,87.55,87.442,4.37029369]
[1772476286780,10.7689261,87.55,87.441,3.69383402]
[1772476286781,11.42191408,87.551,87.456,4.08597055]
[1772476286967,2.77716525,87.55,87.468,5.10909883]
[1772476287286,2.77716525,87.55,87.494,0.28432314]
[1772476287485,2.77716525,87.55,87.497,4.08597055]
[1772476287677,2.77716525,87.575,87.504,0.28432314]
[1772476287861,2.77716525,87.575,87.517,4.08597055]
[1772476288268,11.41891428,87.574,87.519,4.08597055]
[1772476288469,2.77716525,87.575,87.527,4.08597055]
[1772476288665,14.19605744,87.575,87.527,4.08597055]
[1772476288980,2.77716525,87.575,87.527,4.08597055]
[1772476289182,2.77716525,87.586,87.527,4.08597055]
[1772476289665,2.77716525,87.579,87.527,4.08597055]
[1772476290577,11.41839274,87.578,87.529,4.08597055]
[1772476290762,11.41695875,87.589,87.537,4.08597055]
[1772476290965,2.77716525,87.588,87.537,4.08597055]
[1772476291671,10.7689261,87.58,87.537,4.08597055]
[1772476291985,2.77716525,87.579,87.537,4.08597055]
[1772476292288,2.77716525,87.559,87.512,4.08597055]
[1772476292495,11.42100093,87.558,87.513,11.42687372]
[1772476292664,2.77716525,87.557,87.514,4.08597055]
[1772476293279,11.4198271,87.567,87.514,4.08597055]
[1772476293469,11.4198271,87.567,87.516,4.08597055]
[1772476293678,2.77716525,87.566,87.516,4.08597055]
[1772476294685,2.77716525,87.559,87.518,4.08597055]
[1772476295487,11.42008793,87.565,87.518,4.08597055]
[1772476296382,2.77716525,87.564,87.518,4.08597055]
[1772476296777,14.19751402,87.563,87.52,4.08597055]
[1772476296992,2.77716525,87.559,87.52,4.08597055]
[1772476297972,11.42034877,87.563,87.52,4.08597055]
[1772476298379,2.77716525,87.562,87.52,4.08597055]
[1772476298776,2.77716525,87.56,87.521,11.42582922]
[1772476299088,2.77716525,87.559,87.52,4.08597055]
[1772476299270,2.77716525,87.583,87.522,4.37029369]
[1772476299471,2.77716525,87.593,87.537,4.08597055]
[1772476299990,2.77716525,87.593,87.543,0.28432314]
[1772476300289,2.77716525,87.606,87.551,0.28432314]
[1772476300488,10.7689261,87.62,87.556,4.08597055]
[1772476300489,11.41526449,87.602,87.556,4.08597055]
[1772476300687,3.06148839,87.601,87.553,4.08597055]
[1772476300988,2.77716525,87.579,87.534,4.08597055]
[1772476301790,10.72424202,87.57,87.534,4.08597055]
[1772476302789,11.41956628,87.569,87.534,4.08597055]
[1772476302975,11.41956628,87.569,87.536,4.08597055]
[1772476303177,45.66105796,87.602,87.535,11.42400182]
[1772476303178,11.41304968,87.619,87.539,4.37029369]
[1772476303477,2.77716525,87.599,87.549,4.08597055]
[1772476304085,2.77716525,87.609,87.549,4.08597055]
[1772476304291,10.72424202,87.6,87.549,4.08597055]
[1772476304883,2.77716525,87.607,87.551,4.08597055]
[1772476305683,2.77716525,87.607,87.55,39.9771559]
[1772476305684,2.77716525,87.607,87.557,4.08597055]
[1772476306203,39.95068942,87.608,87.567,4.08597055]
[1772476306373,11.4133102,87.617,87.567,4.08597055]
[1772476306572,39.9465857,87.617,87.567,4.08597055]
[1772476306807,11.4133102,87.617,87.567,4.08597055]
[1772476307128,11.4133102,87.617,87.569,4.08597055]
[1772476307477,39.9465857,87.617,87.569,4.08597055]
[1772476307697,2.77716525,87.616,87.569,4.08597055]
[1772476307868,2.77716525,87.616,87.572,4.32752493]
[1772476308297,39.9465857,87.617,87.568,11.41969669]
[1772476308298,2.77716525,87.609,87.568,11.41969669]
[1772476309291,2.77716525,87.607,87.568,11.41969669]
[1772476309511,11.41448269,87.608,87.569,4.32752493]
[1772476310389,2.77716525,87.616,87.569,4.32752493]
[1772476312414,2.77716525,87.599,87.548,4.32752493]
[1772476312710,2.77716525,87.599,87.527,1.14250459]
[1772476312711,3.06148839,87.579,87.533,1.14242628]
[1772476312908,2.77716525,87.569,87.53,4.32752493]
[1772476314416,10.72424202,87.56,87.53,4.32752493]
[1772476314606,39.96893842,87.568,87.532,4.32752493]
[1772476314816,28.5460836,87.578,87.532,4.32752493]
[1772476315113,14.19568837,87.577,87.532,4.32752493]
[1772476315905,3.69383402,87.61,87.531,39.98583358]
[1772476315906,11.41804234,87.581,87.536,4.32752493]
[1772476316103,11.41745633,87.586,87.536,4.32752493]
[1772476317021,42.73195924,87.599,87.547,4.32752493]
[1772476317405,2.77716525,87.589,87.547,4.32752493]
[1772476318723,2.77716525,87.579,87.538,4.32752493]
[1772476319023,11.41839274,87.578,87.54,4.32752493]
[1772476319405,0.28432314,87.576,87.508,1.14275266]
[1772476319648,10.72424202,87.55,87.496,4.32752493]
[1772476319835,10.72424202,87.56,87.496,0.28432314]
[1772476320000,10.72424202,87.56,87.506,4.32752493]
[1772476320196,10.72424202,87.57,87.516,4.32752493]
[1772476320509,3.69383402,87.575,87.526,4.32752493]
[1772476320714,10.72424202,87.57,87.526,4.32752493]
[1772476320910,11.41956628,87.569,87.531,4.32752493]
[1772476321100,10.72424202,87.59,87.537,4.32752493]
[1772476321300,92.28553413,87.648,87.547,4.32752493]
[1772476321301,10.72424202,87.6,87.547,4.32752493]
[1772476321512,11.41591607,87.597,87.547,4.32752493]
[1772476321721,10.72424202,87.59,87.547,4.32752493]
[1772476321927,13.50140727,87.58,87.536,4.32752493]
[1772476322120,13.50140727,87.59,87.536,4.32752493]
[1772476322319,11.41591607,87.597,87.542,4.32752493]
[1772476322621,11.41591607,87.597,87.546,4.32752493]
[1772476324102,11.41591607,87.597,87.548,4.32752493]
[1772476325106,2.77716525,87.589,87.548,4.32752493]
[1772476326320,11.41708909,87.588,87.55,4.32752493]
[1772476326519,39.95981183,87.588,87.55,4.32752493]
[1772476327338,11.41708909,87.588,87.55,4.32752493]
[1772476327536,11.41708909,87.588,87.524,1.14254375]
[1772476327537,2.77716525,87.579,87.54,4.32752493]
[1772476328142,45.6593696,87.606,87.54,4.32752493]
[1772476328143,0.1,87.64,87.554,5.10909883]
[1772476328312,0.1,87.64,87.572,0.28432314]
[1772476328515,0.1,87.64,87.587,4.32752493]
[1772476328920,0.1,87.64,87.597,4.32752493]
[1772476329335,2.77716525,87.629,87.578,4.32752493]
[1772476330024,10.72424202,87.62,87.578,4.32752493]
[1772476330222,11.41304968,87.619,87.579,15.74578729]
[1772476330431,11.41304968,87.619,87.58,4.32752493]
[1772476330825,2.77716525,87.609,87.574,11.41881465]
[1772476331231,0.1,87.64,87.575,4.32752493]
[1772476331232,2.77716525,87.621,87.575,4.32752493]
[1772476331534,2.77716525,87.621,87.574,39.96610037]
[1772476331535,10.72424202,87.63,87.577,4.32752493]
[1772476331834,2.77716525,87.638,87.577,4.32752493]
[1772476332033,10.72424202,87.63,87.577,4.32752493]
[1772476332627,11.41174725,87.629,87.578,39.9643746]
[1772476332836,11.41174725,87.629,87.579,4.32752493]
[1772476333540,2.77716525,87.619,87.579,4.32752493]
[1772476333721,2.77716525,87.599,87.558,11.42092464]
[1772476333916,10.72424202,87.6,87.498,45.71527723]
[1772476333917,2.77716525,87.579,87.512,4.32752493]
[1772476334117,10.72424202,87.57,87.512,4.32752493]
[1772476334327,2.77716525,87.579,87.515,4.32752493]
[1772476334525,10.72424202,87.57,87.515,4.32752493]
[1772476334739,10.72424202,87.6,87.517,4.32752493]
[1772476334740,13.50140727,87.56,87.517,4.32752493]
[1772476334942,11.42087049,87.559,87.517,4.32752493]
[1772476335136,39.9538818,87.601,87.52,4.32752493]
[1772476335325,2.77716525,87.589,87.52,4.61184807]
[1772476335524,10.72424202,87.59,87.526,4.13596876]
[1772476335733,4.92477569,87.64,87.546,4.13596876]
[1772476335734,10.72424202,87.6,87.546,4.13596876]
[1772476336128,2.77716525,87.599,87.546,4.13596876]
[1772476336922,2.77716525,87.599,87.548,4.13596876]
[1772476337120,14.19286221,87.599,87.548,4.13596876]
[1772476337625,2.77716525,87.598,87.548,4.13596876]
[1772476338935,11.41591607,87.597,87.55,4.12293276]
[1772476339324,2.77716525,87.596,87.55,4.12293276]
[1772476340045,10.72424202,87.6,87.553,4.12293276]
[1772476340349,2.77716525,87.589,87.553,4.12293276]